fUST/lending_fUST_20251203
["ID","MTS","AMOUNT","RATE_DAILY","PERIOD"]
[395636393,1764711043536,-500.0,0.00013698,2]
[395636394,1764711043545,-500.0,0.00013698,2]
[395636396,1764711043555,-500.0,0.00013698,2]
[395636398,1764711043564,-500.0,0.00013698,2]
[395636399,1764711043573,-985.12,0.00013698,2]
[395636401,1764711043582,-500.0,0.00013698,2]
[395636403,1764711043591,-500.0,0.00013698,2]
[395636404,1764711043600,-500.0,0.00013698,2]
[395636406,1764711043609,-500.0,0.00013698,2]
[395636408,1764711043619,-500.0,0.00013698,2]
[395636409,1764711043628,-500.0,0.00013698,2]
[395636411,1764711043636,-1003.22,0.00013698,2]
[395636413,1764711043645,-500.0,0.00013698,2]
[395636414,1764711043654,-379.50435386,0.00013698,2]
[395636415,1764711043663,-500.0,0.00013698,2]
[395636417,1764711043672,-500.0,0.00013698,2]
[395636419,1764711043682,-500.0,0.00013698,2]
[395636420,1764711043691,-691.44,0.00013698,2]
[395636422,1764711043700,-500.0,0.00013698,2]
[395636424,1764711043709,-924.06,0.00013698,2]
[395636426,1764711043718,-1684.12,0.00013698,2]
[395636427,1764711043727,-500.0,0.00013698,2]
[395636429,1764711043737,-185.10322241,0.00013698,2]
[395636431,1764711043746,-582.58088417,0.00013698,2]
[395636432,1764711043755,-500.0,0.00013698,2]
[395636434,1764711043765,-500.0,0.00013698,2]
[395636436,1764711043774,-500.0,0.00013698,2]
[395636438,1764711043784,-500.0,0.00013698,2]
[395636440,1764711043793,-500.0,0.00013698,2]
[395636441,1764711043802,-500.0,0.00013698,2]
[395636443,1764711043812,-500.0,0.00013698,2]
[395636445,1764711043822,-513.76,0.00013698,2]
[395636447,1764711043831,-1229.35,0.00013698,2]
[395636448,1764711043841,-500.0,0.00013698,2]
[395636450,1764711043850,-162.77238348,0.00013698,2]
[395636452,1764711043860,-500.0,0.00013698,2]
[395636454,1764711043869,-500.0,0.00013698,2]
[395636455,1764711043879,-500.0,0.00013698,2]
[395636457,1764711043887,-500.0,0.00013698,2]
[395636459,1764711043896,-864.26,0.00013698,2]
[395636461,1764711043905,-500.0,0.00013698,2]
[395636462,1764711043914,-500.0,0.00013698,2]
[395636464,1764711043924,-500.0,0.00013698,2]
[395636466,1764711043933,-500.0,0.00013698,2]
[395636467,1764711043944,-500.0,0.00013698,2]
[395636469,1764711043953,-500.0,0.00013698,2]
[395636471,1764711043962,-546.36,0.00013698,2]
[395636472,1764711043971,-500.0,0.00013698,2]
[395636474,1764711043981,-500.0,0.00013698,2]
[395636475,1764711043990,-500.0,0.00013698,2]
[395636476,1764711043999,-500.0,0.00013698,2]
[395636477,1764711044008,-500.0,0.00013698,2]
[395636479,1764711044017,-500.0,0.00013698,2]
[395636480,1764711044026,-421.95997842,0.00013698,2]
[395636482,1764711044035,-500.0,0.00013698,2]
[395636484,1764711044045,-500.0,0.00013698,2]
[395636485,1764711044054,-500.0,0.00013698,2]
[395636487,1764711044062,-500.0,0.00013698,2]
[395636489,1764711044071,-1533.99,0.00013698,2]
[395636491,1764711044083,-500.0,0.00013698,2]
[395636492,1764711044095,-500.0,0.00013698,2]
[395636494,1764711044104,-443.97,0.00013698,2]
[395636496,1764711044114,-657.91,0.00013698,2]
[395636497,1764711044122,-500.0,0.00013698,2]
[395636499,1764711044131,-500.0,0.00013698,2]
[395636501,1764711044141,-500.0,0.00013698,2]
[395636503,1764711044150,-500.0,0.00013698,2]
[395636504,1764711044159,-500.0,0.00013698,2]
[395636506,1764711044168,-500.0,0.00013698,2]
[395636508,1764711044178,-584.3674352,0.00013698,2]
[395636509,1764711044187,-500.0,0.00013698,2]
[395636511,1764711044197,-500.0,0.00013698,2]
[395636513,1764711044206,-500.0,0.00013698,2]
[395636515,1764711044216,-500.0,0.00013698,2]
[395636516,1764711044225,-500.0,0.00013698,2]
[395636518,1764711044234,-500.0,0.00013698,2]
[395636520,1764711044244,-563.2354843,0.00013698,2]
[395636522,1764711044253,-541.67,0.00013698,2]
[395636523,1764711044262,-805.15,0.00013698,2]
[395636525,1764711044272,-500.0,0.00013698,2]
[395636527,1764711044281,-500.0,0.00013698,2]
[395636528,1764711044290,-500.0,0.00013698,2]
[395636530,1764711044299,-724.67,0.00013698,2]
[395636532,1764711044308,-500.0,0.00013698,2]
[395636534,1764711044317,-500.0,0.00013698,2]
[395636535,1764711044327,-546.68,0.00013698,2]
[395636537,1764711044336,-500.0,0.00013698,2]
[395636539,1764711044345,-500.0,0.00013698,2]
[395636540,1764711044354,-571.91,0.00013698,2]
[395636542,1764711044363,-500.0,0.00013698,2]
[395636560,1764711044569,-500.0,0.00013698,2]
[395636561,1764711044579,-500.0,0.00013698,2]
[395636563,1764711044589,-709.39,0.00013698,2]
[395636565,1764711044598,-500.0,0.00013698,2]
[395636567,1764711044607,-694.69,0.00013698,2]
[395636568,1764711044616,-647.28,0.00013698,2]
[395636570,1764711044625,-500.0,0.00013698,2]
[395636572,1764711044635,-500.0,0.00013698,2]
[395636574,1764711044644,-500.0,0.00013698,2]
[395636575,1764711044653,-500.0,0.00013698,2]
[395636577,1764711044663,-500.0,0.00013698,2]
[395636579,1764711044672,-500.0,0.00013698,2]
[395636581,1764711044681,-500.0,0.00013698,2]
[395636582,1764711044691,-500.0,0.00013698,2]
[395636584,1764711044700,-641.38,0.00013698,2]
[395636586,1764711044709,-500.0,0.00013698,2]
[395636588,1764711044719,-500.0,0.00013698,2]
[395636589,1764711044727,-500.0,0.00013698,2]
[395636591,1764711044736,-500.0,0.00013698,2]
[395636593,1764711044745,-151.0,0.00013698,2]
[395636595,1764711044754,-1580.24,0.00013698,2]
[395636596,1764711044763,-1149.12,0.00013698,2]
[395636598,1764711044773,-500.0,0.00013698,2]
[395636600,1764711044782,-929.85,0.00013698,2]
[395636602,1764711044792,-685.75,0.00013698,2]
[395636604,1764711044801,-574.78,0.00013698,2]
[395636605,1764711044811,-893.12,0.00013698,2]
[395636607,1764711044819,-500.0,0.00013698,2]
[395636609,1764711044830,-851.78,0.00013698,2]
[395636611,1764711044839,-734.17,0.00013698,2]
[395636612,1764711044849,-500.0,0.00013698,2]
[395636614,1764711044859,-567.9,0.00013698,2]
[395636616,1764711044869,-500.0,0.00013698,2]
[395636618,1764711044878,-819.21,0.00013698,2]
[395636620,1764711044887,-500.0,0.00013698,2]
[395636621,1764711044897,-500.0,0.00013698,2]
[395636623,1764711044906,-1436.92,0.00013698,2]
[395636625,1764711044917,-1123.28,0.00013698,2]
[395636627,1764711044926,-734.24,0.00013698,2]
[395636628,1764711044935,-500.0,0.00013698,2]
[395636630,1764711044944,-528.12,0.00013698,2]
[395636632,1764711044953,-548.01459671,0.00013698,2]
[395636634,1764711044963,-500.0,0.00013698,2]
[395636635,1764711044974,-500.0,0.00013698,2]
[395636637,1764711044983,-500.0,0.00013698,2]
[395636639,1764711044993,-969.88,0.00013698,2]
[395636641,1764711045003,-500.0,0.00013698,2]
[395636643,1764711045013,-500.0,0.00013698,2]
[395636644,1764711045022,-500.0,0.00013698,2]
[395636646,1764711045031,-500.0,0.00013698,2]
[395636648,1764711045041,-500.0,0.00013698,2]
[395636649,1764711045050,-500.0,0.00013698,2]
[395636651,1764711045059,-500.0,0.00013698,2]
[395636653,1764711045069,-777.78,0.00013698,2]
[395636655,1764711045078,-252.00941987,0.00013698,2]
[395636657,1764711045087,-500.0,0.00013698,2]
[395636658,1764711045096,-734.65,0.00013698,2]
[395636660,1764711045105,-500.0,0.00013698,2]
[395636662,1764711045115,-607.96757915,0.00013698,2]
[395636664,1764711045124,-500.0,0.00013698,2]
[395636666,1764711045135,-224.74434888,0.00013698,2]
[395636668,1764711045144,-500.0,0.00013698,2]
[395636669,1764711045153,-500.0,0.00013698,2]
[395636671,1764711045164,-500.0,0.00013698,2]
[395636673,1764711045173,-500.0,0.00013698,2]
[395636675,1764711045181,-500.0,0.00013698,2]
[395636677,1764711045191,-639.13,0.00013698,2]
[395636678,1764711045200,-500.0,0.00013698,2]
[395636680,1764711045209,-500.0,0.00013698,2]
[395636682,1764711045219,-500.0,0.00013698,2]
[395636684,1764711045228,-638.78,0.00013698,2]
[395636685,1764711045237,-803.1,0.00013698,2]
[395636687,1764711045246,-153.20251779,0.00013698,2]
[395636689,1764711045256,-500.0,0.00013698,2]
[395636691,1764711045265,-666.82,0.00013698,2]
[395636693,1764711045275,-500.0,0.00013698,2]
[395636695,1764711045284,-500.0,0.00013698,2]
[395636696,1764711045294,-522.87,0.00013698,2]
[395636698,1764711045306,-500.0,0.00013698,2]
[395636700,1764711045315,-500.0,0.00013698,2]
[395636702,1764711045324,-500.0,0.00013698,2]
[395636704,1764711045333,-500.0,0.00013698,2]
[395636705,1764711045342,-500.0,0.00013698,2]
[395636707,1764711045351,-2917.9,0.00013698,2]
[395636709,1764711045360,-500.0,0.00013698,2]
[395636711,1764711045369,-1137.24,0.00013698,2]
[395636712,1764711045377,-500.0,0.00013698,2]
[395636714,1764711045387,-500.0,0.00013698,2]
[395636716,1764711045396,-500.0,0.00013698,2]
[395636718,1764711045405,-872.14,0.00013698,2]
[395636720,1764711045416,-777.97,0.00013698,2]
[395636721,1764711045425,-500.0,0.00013698,2]
[395636723,1764711045434,-615.99118568,0.00013698,2]
[395636725,1764711045443,-151.0,0.00013698,2]
[395636727,1764711045452,-151.0,0.00013698,2]
[395636728,1764711045461,-890.49,0.00013698,2]
[395636730,1764711045473,-500.0,0.00013698,2]
[395636732,1764711045482,-500.0,0.00013698,2]
[395636734,1764711045492,-500.0,0.00013698,2]
[395636736,1764711045503,-500.0,0.00013698,2]
[395636737,1764711045512,-500.0,0.00013698,2]
[395636739,1764711045521,-500.0,0.00013698,2]
[395636741,1764711045530,-500.0,0.00013698,2]
[395636743,1764711045542,-500.0,0.00013698,2]
[395636745,1764711045551,-500.0,0.00013698,2]
[395636746,1764711045560,-1800.94,0.00013698,2]
[395636748,1764711045569,-500.0,0.00013698,2]
[395636750,1764711045578,-502.04,0.00013698,2]
[395636752,1764711045588,-500.0,0.00013698,2]
[395636754,1764711045598,-500.0,0.00013698,2]
[395636755,1764711045607,-733.25,0.00013698,2]
[395636757,1764711045617,-500.0,0.00013698,2]
[395636759,1764711045626,-500.0,0.00013698,2]
[395636761,1764711045634,-500.0,0.00013698,2]
[395636763,1764711045643,-533.56,0.00013698,2]
[395636764,1764711045653,-848.76,0.00013698,2]
[395636766,1764711045662,-193.129984,0.00013698,2]
[395636768,1764711045671,-500.0,0.00013698,2]
[395636770,1764711045680,-500.0,0.00013698,2]
[395636771,1764711045689,-500.0,0.00013698,2]
[395636773,1764711045698,-500.0,0.00013698,2]
[395636775,1764711045707,-551.83,0.00013698,2]
[395636777,1764711045716,-972.08,0.00013698,2]
[395636779,1764711045725,-500.0,0.00013698,2]
[395636780,1764711045734,-500.0,0.00013698,2]
[395636782,1764711045743,-3455.67,0.00013698,2]
[395636784,1764711045752,-3984.8,0.00013698,2]
[395636786,1764711045761,-500.0,0.00013698,2]
[395636788,1764711045769,-1196.85,0.00013698,2]
[395636789,1764711045779,-500.0,0.00013698,2]
[395636791,1764711045787,-500.0,0.00013698,2]
[395636793,1764711045796,-500.0,0.00013698,2]
[395636795,1764711045807,-500.0,0.00013698,2]
[395636796,1764711045816,-736.29,0.00013698,2]
[395636798,1764711045826,-500.0,0.00013698,2]
[395636800,1764711045835,-500.0,0.00013698,2]
[395636802,1764711045844,-500.0,0.00013698,2]
[395636804,1764711045854,-500.0,0.00013698,2]
[395636806,1764711045865,-500.0,0.00013698,2]
[395636807,1764711045874,-1079.25,0.00013698,2]
[395636809,1764711045883,-577.36,0.00013698,2]
[395636811,1764711045892,-500.0,0.00013698,2]
[395636813,1764711045901,-500.0,0.00013698,2]
[395636815,1764711045911,-1187.95,0.00013698,2]
[395636816,1764711045920,-500.0,0.00013698,2]
[395636818,1764711045929,-151.0,0.00013698,2]
[395636820,1764711045938,-151.0,0.00013698,2]
[395636822,1764711045947,-500.0,0.00013698,2]
[395636824,1764711045957,-151.0,0.00013698,2]
[395636826,1764711045966,-151.0,0.00013698,2]
[395636827,1764711045976,-151.0,0.00013698,2]
[395636829,1764711045985,-151.0,0.00013698,2]
[395636831,1764711045994,-500.0,0.00013698,2]
[395636833,1764711046004,-151.0,0.00013698,2]
[395636835,1764711046014,-151.0,0.00013698,2]
[395636836,1764711046023,-151.0,0.00013698,2]
[395636838,1764711046032,-871.77,0.00013698,2]
[395636840,1764711046041,-633.42,0.00013698,2]
[395636842,1764711046050,-500.0,0.00013698,2]
[395636844,1764711046059,-500.0,0.00013698,2]
[395636845,1764711046069,-500.0,0.00013698,2]
[395636847,1764711046079,-987.07,0.00013698,2]
[395636849,1764711046088,-500.0,0.00013698,2]
[395636851,1764711046097,-500.0,0.00013698,2]
[395636853,1764711046107,-859.0,0.00013698,2]
[395636855,1764711046116,-500.0,0.00013698,2]
[395636856,1764711046126,-646.01,0.00013698,2]
[395636858,1764711046135,-704.64,0.00013698,2]
[395636860,1764711046146,-1474.0,0.00013698,2]
[395636862,1764711046155,-500.0,0.00013698,2]
[395636864,1764711046164,-500.0,0.00013698,2]
[395636865,1764711046173,-500.0,0.00013698,2]
[395636867,1764711046183,-406.46073617,0.00013698,2]
[395636869,1764711046195,-500.0,0.00013698,2]
[395636871,1764711046204,-500.0,0.00013698,2]
[395636873,1764711046218,-1029.78,0.00013698,2]
[395636875,1764711046227,-701.12,0.00013698,2]
[395636876,1764711046237,-500.0,0.00013698,2]
[395636878,1764711046246,-789.07,0.00013698,2]
[395636880,1764711046256,-500.0,0.00013698,2]
[395636882,1764711046265,-1291.1,0.00013698,2]
[395636884,1764711046274,-151.0,0.00013698,2]
[395636886,1764711046283,-554.44,0.00013698,2]
[395636887,1764711046293,-151.0,0.00013698,2]
[395636889,1764711046302,-151.0,0.00013698,2]
[395636891,1764711046312,-500.0,0.00013698,2]
[395636893,1764711046321,-151.0,0.00013698,2]
[395636895,1764711046330,-151.0,0.00013698,2]
[395636897,1764711046339,-151.0,0.00013698,2]
[395636898,1764711046348,-151.0,0.00013698,2]
[395636900,1764711046357,-151.0,0.00013698,2]
[395636902,1764711046366,-151.0,0.00013698,2]
[395636904,1764711046376,-500.0,0.00013698,2]
[395636906,1764711046385,-500.0,0.00013698,2]
[395636907,1764711046395,-564.42,0.00013698,2]
[395636909,1764711046404,-500.0,0.00013698,2]
[395636911,1764711046413,-500.0,0.00013698,2]
[395636913,1764711046423,-620.71,0.00013698,2]
[395636915,1764711046433,-500.0,0.00013698,2]
[395636916,1764711046442,-500.0,0.00013698,2]
[395636918,1764711046451,-500.0,0.00013698,2]
[395636920,1764711046462,-151.0,0.00013698,2]
[395636922,1764711046475,-500.0,0.00013698,2]
[395636924,1764711046484,-1064.28,0.00013698,2]
[395636926,1764711046494,-500.0,0.00013698,2]
[395636928,1764711046505,-151.0,0.00013698,2]
[395636929,1764711046514,-151.0,0.00013698,2]
[395636931,1764711046524,-500.0,0.00013698,2]
[395636933,1764711046533,-702.53,0.00013698,2]
[395636935,1764711046545,-151.0,0.00013698,2]
[395636937,1764711046555,-151.0,0.00013698,2]
[395636939,1764711046564,-151.0,0.00013698,2]
[395636940,1764711046573,-1263.9,0.00013698,2]
[395636942,1764711046582,-151.0,0.00013698,2]
[395636944,1764711046592,-151.0,0.00013698,2]
[395636946,1764711046602,-151.0,0.00013698,2]
[395636948,1764711046612,-944.45,0.00013698,2]
[395636950,1764711046621,-500.0,0.00013698,2]
[395636951,1764711046630,-500.0,0.00013698,2]
[395636953,1764711046639,-500.0,0.00013698,2]
[395636955,1764711046648,-588.77626591,0.00013698,2]
[395636957,1764711046657,-500.0,0.00013698,2]
[395636959,1764711046665,-2148.09,0.00013698,2]
[395636960,1764711046674,-721.27,0.00013698,2]
[395636962,1764711046684,-949.72,0.00013698,2]
[395636964,1764711046693,-1563.51,0.00013698,2]
[395636966,1764711046702,-500.0,0.00013698,2]
[395636968,1764711046711,-500.0,0.00013698,2]
[395636970,1764711046729,-787.68,0.00013698,2]
[395636972,1764711046738,-500.0,0.00013698,2]
[395636973,1764711046747,-500.0,0.00013698,2]
[395636975,1764711046756,-1179.49,0.00013698,2]
[395636977,1764711046766,-906.08,0.00013698,2]
[395636979,1764711046776,-500.0,0.00013698,2]
[395636981,1764711046785,-500.0,0.00013698,2]
[395636982,1764711046795,-657.81,0.00013698,2]
[395636984,1764711046811,-555.38,0.00013698,2]
[395636985,1764711046822,-294.71917403,0.00013698,2]
[395636986,1764711046831,-971.8,0.00013698,2]
[395636987,1764711046841,-696.73,0.00013698,2]
[395636988,1764711046851,-500.0,0.00013698,2]
[395636989,1764711046860,-756.62,0.00013698,2]
[395636990,1764711046870,-1729.58,0.00013698,2]
[395636991,1764711046880,-453.31507639,0.00013698,2]
[395636992,1764711046890,-500.0,0.00013698,2]
[395636993,1764711046899,-533.2300167,0.00013698,2]
[395636994,1764711046909,-500.0,0.00013698,2]
[395636995,1764711046919,-500.0,0.00013698,2]
[395636996,1764711046928,-580.39,0.00013698,2]
[395636997,1764711046938,-500.0,0.00013698,2]
[395636998,1764711046949,-500.0,0.00013698,2]
[395636999,1764711046958,-500.0,0.00013698,2]
[395637000,1764711046971,-500.0,0.00013698,2]
[395637001,1764711046980,-599.21,0.00013698,2]
[395637002,1764711046990,-500.0,0.00013698,2]
[395637003,1764711047000,-1032.37,0.00013698,2]
[395637004,1764711047010,-1535.07,0.00013698,2]
[395637005,1764711047020,-741.42,0.00013698,2]
[395637006,1764711047030,-1062.93,0.00013698,2]
[395637007,1764711047040,-883.2,0.00013698,2]
[395637008,1764711047050,-500.0,0.00013698,2]
[395637009,1764711047060,-500.0,0.00013698,2]
[395637010,1764711047069,-1825.44,0.00013698,2]
[395637011,1764711047079,-500.0,0.00013698,2]
[395637012,1764711047088,-705.8,0.00013698,2]
[395637013,1764711047098,-501.22,0.00013698,2]
[395637014,1764711047107,-500.0,0.00013698,2]
[395637015,1764711047117,-1329.32,0.00013698,2]
[395637016,1764711047126,-689.35,0.00013698,2]
[395637017,1764711047135,-1306.53,0.00013698,2]
[395637018,1764711047145,-525.61,0.00013698,2]
[395637019,1764711047155,-695.07,0.00013698,2]
[395637020,1764711047164,-500.0,0.00013698,2]
[395637021,1764711047174,-2890.4,0.00013698,2]
[395637022,1764711047184,-612.66327797,0.00013698,2]
[395637023,1764711047194,-500.0,0.00013698,2]
[395637024,1764711047203,-500.0,0.00013698,2]
[395637025,1764711047213,-500.0,0.00013698,2]
[395637026,1764711047223,-500.0,0.00013698,2]
[395637027,1764711047232,-523.92127251,0.00013698,2]
[395637028,1764711047241,-500.0,0.00013698,2]
[395637029,1764711047251,-500.0,0.00013698,2]
[395637030,1764711047261,-611.64,0.00013698,2]
[395637031,1764711047271,-1209.22,0.00013698,2]
[395637032,1764711047281,-4396.15,0.00013698,2]
[395637033,1764711047290,-1225.33,0.00013698,2]
[395637034,1764711047300,-500.0,0.00013698,2]
[395637035,1764711047310,-1629.92,0.00013698,2]
[395637036,1764711047320,-500.0,0.00013698,2]
[395637037,1764711047330,-500.0,0.00013698,2]
[395637038,1764711047340,-151.0,0.00013698,2]
[395637039,1764711047349,-151.0,0.00013698,2]
[395637040,1764711047359,-575.15,0.00013698,2]
[395637041,1764711047369,-500.0,0.00013698,2]
[395637042,1764711047378,-500.0,0.00013698,2]
[395637043,1764711047388,-832.73,0.00013698,2]
[395637044,1764711047398,-993.8,0.00013698,2]
[395637045,1764711047407,-1038.55,0.00013698,2]
[395637046,1764711047417,-500.0,0.00013698,2]
[395637047,1764711047427,-1502.91,0.00013698,2]
[395637048,1764711047437,-1121.67,0.00013698,2]
[395637049,1764711047447,-500.0,0.00013698,2]
[395637050,1764711047456,-748.96,0.00013698,2]
[395637051,1764711047469,-500.0,0.00013698,2]
[395637052,1764711047478,-809.12,0.00013698,2]
[395637053,1764711047488,-5879.28,0.00013698,2]
[395637054,1764711047496,-918.16,0.00013698,2]
[395637055,1764711047507,-500.0,0.00013698,2]
[395637056,1764711047516,-4193.46,0.00013698,2]
[395637057,1764711047526,-1089.36,0.00013698,2]
[395637058,1764711047535,-688.31,0.00013698,2]
[395637059,1764711047546,-500.0,0.00013698,2]
[395637060,1764711047555,-500.0,0.00013698,2]
[395637061,1764711047564,-668.58,0.00013698,2]
[395637063,1764711047574,-500.0,0.00013698,2]
[395637064,1764711047583,-1732.95,0.00013698,2]
[395637065,1764711047592,-500.0,0.00013698,2]
[395637066,1764711047601,-966.86,0.00013698,2]
[395637068,1764711047611,-4178.81,0.00013698,2]
[395637069,1764711047620,-500.0,0.00013698,2]
[395637070,1764711047630,-500.0,0.00013698,2]
[395637072,1764711047639,-500.0,0.00013698,2]
[395637074,1764711047649,-500.0,0.00013698,2]
[395637076,1764711047658,-500.0,0.00013698,2]
[395637078,1764711047667,-500.0,0.00013698,2]
[395637080,1764711047677,-271.23898045,0.00013698,2]
[395637082,1764711047686,-500.0,0.00013698,2]
[395637084,1764711047695,-2953.34,0.00013698,2]
[395637085,1764711047704,-547.24,0.00013698,2]
[395637088,1764711047713,-849.21,0.00013698,2]
[395637090,1764711047722,-689.75,0.00013698,2]
[395637092,1764711047732,-593.87123517,0.00013698,2]
[395637094,1764711047742,-3223.66,0.00013698,2]
[395637095,1764711047751,-500.0,0.00013698,2]
[395637097,1764711047760,-500.0,0.00013698,2]
[395637099,1764711047770,-500.0,0.00013698,2]
[395637101,1764711047779,-574.85,0.00013698,2]
[395637103,1764711047789,-576.84,0.00013698,2]
[395637105,1764711047798,-1971.02,0.00013698,2]
[395637107,1764711047807,-500.0,0.00013698,2]
[395637109,1764711047816,-500.0,0.00013698,2]
[395637111,1764711047826,-500.0,0.00013698,2]
[395637113,1764711047835,-1393.25,0.00013698,2]
[395637115,1764711047846,-2741.74,0.00013698,2]
[395637117,1764711047855,-699.64,0.00013698,2]
[395637119,1764711047865,-500.0,0.00013698,2]
[395637121,1764711047874,-1018.31,0.00013698,2]
[395637123,1764711047883,-596.34,0.00013698,2]
[395637125,1764711047892,-500.0,0.00013698,2]
[395637127,1764711047902,-500.0,0.00013698,2]
[395637129,1764711047911,-1287.25,0.00013698,2]
[395637131,1764711047920,-742.7,0.00013698,2]
[395637133,1764711047929,-1095.59,0.00013698,2]
[395637135,1764711047936,-500.0,0.00013698,2]
[395637137,1764711047944,-942.47,0.00013698,2]
[395637138,1764711047951,-500.0,0.00013698,2]
[395637140,1764711047959,-500.0,0.00013698,2]
[395637142,1764711047966,-500.0,0.00013698,2]
[395637144,1764711047974,-654.47,0.00013698,2]
[395637146,1764711047982,-500.0,0.00013698,2]
[395637148,1764711047992,-500.0,0.00013698,2]
[395637150,1764711048001,-500.0,0.00013698,2]
[395637152,1764711048011,-500.0,0.00013698,2]
[395637154,1764711048020,-1204.4,0.00013698,2]
[395637156,1764711048030,-1177.96,0.00013698,2]
[395637158,1764711048040,-500.0,0.00013698,2]
[395637160,1764711048049,-843.09,0.00013698,2]
[395637162,1764711048058,-3363.89,0.00013698,2]
[395637164,1764711048067,-500.0,0.00013698,2]
[395637166,1764711048077,-500.0,0.00013698,2]
[395637168,1764711048086,-513.91464878,0.00013698,2]
[395637170,1764711048095,-500.0,0.00013698,2]
[395637172,1764711048105,-693.23,0.00013698,2]
[395637174,1764711048114,-926.17,0.00013698,2]
[395637176,1764711048123,-500.0,0.00013698,2]
[395637178,1764711048137,-500.0,0.00013698,2]
[395637180,1764711048146,-9544.21,0.00013698,2]
[395637182,1764711048155,-500.0,0.00013698,2]
[395637184,1764711048164,-500.0,0.00013698,2]
[395637186,1764711048173,-1118.68,0.00013698,2]
[395637188,1764711048182,-606.33,0.00013698,2]
[395637190,1764711048191,-500.0,0.00013698,2]
[395637192,1764711048200,-500.0,0.00013698,2]
[395637194,1764711048209,-500.0,0.00013698,2]
[395637196,1764711048218,-501.19680907,0.00013698,2]
[395637198,1764711048227,-1049.16,0.00013698,2]
[395637200,1764711048238,-500.0,0.00013698,2]
[395637202,1764711048247,-500.0,0.00013698,2]
[395637203,1764711048256,-510.42013348,0.00013698,2]
[395637205,1764711048266,-500.0,0.00013698,2]
[395637207,1764711048275,-1833.89822053,0.00013698,2]
[395637262,1764711048790,-1609.44177947,0.00013698,2]
[395637264,1764711048799,-611.81,0.00013698,2]
[395637266,1764711048808,-500.0,0.00013698,2]
[395637268,1764711048817,-500.0,0.00013698,2]
[395637270,1764711048826,-500.0,0.00013698,2]
[395637272,1764711048835,-1793.46,0.00013698,2]
[395637274,1764711048844,-1037.4,0.00013698,2]
[395637276,1764711048853,-500.0,0.00013698,2]
[395637278,1764711048862,-151.0,0.00013698,2]
[395637280,1764711048870,-151.0,0.00013698,2]
[395637282,1764711048879,-151.0,0.00013698,2]
[395637284,1764711048888,-151.0,0.00013698,2]
[395637285,1764711048897,-288.207201,0.00013698,2]
[395637287,1764711048907,-500.0,0.00013698,2]
[395637290,1764711048916,-1187.02,0.00013698,2]
[395637291,1764711048925,-500.0,0.00013698,2]
[395637293,1764711048935,-500.0,0.00013698,2]
[395637296,1764711048944,-151.0,0.00013698,2]
[395637297,1764711048955,-1053.48,0.00013698,2]